[Event "World Junior U20 Open 2018"]
[Site "Gebze"]
[Date "2018.09.12"]
[Round "8.52"]
[White "Wong, Yinn Long"]
[Black "Ozer, Omer Faruk"]
[Result "1/2-1/2"]
[ECO "C45"]
[WhiteElo "2261"]
[BlackElo "2388"]
[Annotator "NA"]
[PlyCount "161"]
[EventDate "2018.09.05"]
[EventType "swiss"]
[EventCountry "TUR"]
[SourceTitle "playchess.com"]
[Source "ChessBase"]
[SourceQuality "1"]
[TimeControl "40/5400+30:1800+30"]

1. e4 {[%emt 0:00:30]} e5 {[%emt 0:00:30]} 2. Nf3 {[%emt 0:00:00]} Nc6 {[%emt 0:00:00]} 3. d4 {[%emt 0:01:00]} exd4 {[%emt 0:00:00]} 4. Nxd4 {[%emt 0:00:30]} Nf6 {[%emt 0:00:30]} 5. Nxc6 {[%emt 0:00:00]} bxc6 {[%emt 0:00:30]} 6. e5 {[%emt 0:00:00]} Qe7 {[%emt 0:00:00]} 7. Qe2 {[%emt 0:00:30]} Nd5 {[%emt 0:00:00]} 8. c4 {[%emt 0:00:00]} Ba6 {[%emt 0:00:00]} 9. Nd2 {[%emt 0:02:00]} g6 {[%emt 0:00:00]} 10. b3 {[%emt 0:01:30]} Bg7 {[%emt 0:00:30]} 11. Bb2 {[%emt 0:00:30]} O-O {[%emt 0:01:30]} 12. O-O-O {[%emt 0:01:30] C45: Scotch Game} Rae8 {[%emt 0:06:30]} 13. Nf3 {[%emt 0:05:30]} Nb6 {[%emt 0:11:30]} 14. Qd2 {[%emt 0:02:30]} Bb7 {[%emt 0:00:30]} 15. Bd3 {[%emt 0:16:30]} c5 {[%emt 0:10:30]} 16. Rhe1 {[%emt 0:11:30]} Bxf3 {[%emt 0:04:30]} 17. gxf3 {[%emt 0:00:00]} d6 $146 {[%emt 0:00:30]} ({Predecessor:} 17... Qh4 18. Kb1 d6 19. f4 Qxh2 {1-0 (36) Dzhumaev,M (2495)-Sammed Jaykumar,S (2307) Chennai 2016}) 18. f4 {[%emt 0:06:00]} Qh4 {[%emt 0:02:30]} 19. exd6 {[%emt 0:10:30]} Bxb2+ {[%emt 0:05:30]} 20. Kxb2 {[%emt 0:00:30]} cxd6 {[%emt 0:00:30]} 21. Be4 {[%emt 0:04:30]} Re6 {[%emt 0:04:30]} 22. Bc6 {[%emt 0:07:30]} Rb8 {[%emt 0:01:30]} 23. Kc2 {[%emt 0:01:30]} Rf6 {[%emt 0:03:30]} 24. Re4 {[%emt 0:07:37]} Rc8 {[%emt 0:01:30]} 25. Bb7 {[%emt 0:00:55]} Rc7 {[%emt 0:00:30]} 26. f5 {[%emt 0:04:13]} Qh5 {[%emt 0:00:30]} 27. Re8+ {[%emt 0:00:51]} Kg7 {[%emt 0:00:30]} 28. Be4 {[%emt 0:00:00]} Rc8 {[%emt 0:01:30]} 29. Rxc8 {[%emt 0:04:36]} Nxc8 {[%emt 0:00:30]} 30. fxg6 {[%emt 0:02:17]} hxg6 {[%emt 0:00:30]} 31. f4 {[%emt 0:05:11]} Re6 {[%emt 0:01:30]} 32. Bd3 {[%emt 0:01:19]} Ne7 {[%emt 0:00:30]} 33. Rf1 {[%emt 0:01:33]} Nf5 {[%emt 0:00:00]} 34. Bxf5 {[%emt 0:01:04]} Re2 {[%emt 0:00:00]} 35. Bd3 {[%emt 0:00:34]} Rxd2+ {[%emt 0:00:30]} 36. Kxd2 {[%emt 0:00:02]} Qxh2+ {[%emt 0:00:00]} 37. Be2 {[%emt 0:00:44]} Kf6 {[%emt 0:01:00]} 38. Ke3 {[%emt 0:00:09]} Qg3+ {[%emt 0:00:30]} 39. Bf3 {[%emt 0:00:37]} Kf5 {[%emt 0:01:30]} 40. Ke2 {[%emt 0:00:00]} Kxf4 {[%emt 0:00:00]} 41. Bd5+ {[%emt 0:01:18]} Ke5 {[%emt 0:01:00]} 42. Rxf7 {[%emt 0:00:30]} Qh2+ {[%emt 0:04:30]} 43. Rf2 {[%emt 0:00:30]} Qh5+ {[%emt 0:00:00]} 44. Ke3 {[%emt 0:00:30]} Qh3+ {[%emt 0:04:00]} 45. Rf3 {[%emt 0:08:30]} Qh2 {[%emt 0:01:30]} 46. Rf2 {[%emt 0:00:30]} Qg1 {[%emt 0:00:00]} 47. Kf3 {[%emt 0:04:30]} g5 {[%emt 0:01:00]} 48. Rg2 {[%emt 0:01:30]} Qf1+ {[%emt 0:00:30]} 49. Ke3 {[%emt 0:02:04]} Qf4+ {[%emt 0:00:30]} 50. Kd3 {[%emt 0:02:09]} Qd4+ {[%emt 0:01:30]} 51. Kc2 {[%emt 0:00:11]} g4 {[%emt 0:03:30]} 52. Kb1 {[%emt 0:00:35]} Kf4 {[%emt 0:00:30]} 53. a4 {[%emt 0:07:07]} g3 {[%emt 0:01:30]} 54. Ka2 {[%emt 0:00:19]} Qd3 {[%emt 0:01:30]} 55. Rb2 {[%emt 0:05:06]} Ke5 {[%emt 0:00:30]} 56. Rg2 {[%emt 0:00:18]} Kf6 {[%emt 0:01:30]} 57. Rb2 {[%emt 0:00:07]} Ke7 {[%emt 0:00:00]} 58. Rg2 {[%emt 0:00:47]} Kf6 {[%emt 0:02:00]} 59. Rb2 {[%emt 0:00:05]} Ke5 {[%emt 0:00:00]} 60. Rg2 {[%emt 0:00:30]} Kd4 {[%emt 0:00:00]} 61. Rb2 {[%emt 0:00:01]} Kc3 {[%emt 0:01:30]} 62. Bc6 {[%emt 0:00:56]} Kd4 {[%emt 0:00:30]} 63. Bd5 {[%emt 0:00:18]} Ke5 {[%emt 0:00:30]} 64. Bc6 {[%emt 0:00:33]} Kf4 {[%emt 0:00:00]} 65. Bd5 {[%emt 0:00:34]} Kg4 {[%emt 0:00:00]} 66. Bc6 {[%emt 0:00:15]} a5 {[%emt 0:00:30]} 67. Bd5 {[%emt 0:01:09]} Qd4 {[%emt 0:04:30]} 68. Bg2 {[%emt 0:00:45]} Qg1 {[%emt 0:01:30]} 69. Bd5 {[%emt 0:03:06]} Qf1 {[%emt 0:04:30]} 70. Bc6 {[%emt 0:02:08]} Qf7 {[%emt 0:03:30]} 71. Bg2 {[%emt 0:00:46]} Qg7 {[%emt 0:00:30]} 72. Rc2 {[%emt 0:01:35]} Qh7 {[%emt 0:00:30]} 73. Rb2 {[%emt 0:00:06]} Qf5 $19 {[%emt 0:00:30]} 74. Bc6 {[%emt 0:00:47]} Kh3 {[%emt 0:01:30]} 75. Bg2+ {[%emt 0:00:03]} Kh2 {[%emt 0:00:00]} 76. Be4+ {[%emt 0:00:38]} Qf2 {[%emt 0:00:00]} 77. Rxf2+ {[%emt 0:01:00]} gxf2 {[%emt 0:00:30]} 78. Bd3 {[%emt 0:00:00]} Kg2 {[%emt 0:00:00]} 79. Kb2 {[%emt 0:00:00]} f1=Q {[%emt 0:00:00]} 80. Bxf1+ {[%emt 0:00:26]} Kxf1 {[%emt 0:00:00]} 81. Kb1 {[%emt 0:00:34]} 1/2-1/2

[Event "World Junior U20 Open 2018"]
[Site "Gebze"]
[Date "2018.09.12"]
[Round "8.53"]
[White "Tuncer, Tuna"]
[Black "Thilakarathne, G M H"]
[Result "1/2-1/2"]
[ECO "B47"]
[WhiteElo "2342"]
[BlackElo "2238"]
[Annotator "NA"]
[PlyCount "56"]
[EventDate "2018.09.05"]
[EventType "swiss"]
[EventCountry "TUR"]
[SourceTitle "playchess.com"]
[Source "ChessBase"]
[SourceQuality "1"]
[TimeControl "40/5400+30:1800+30"]

1. e4 {[%emt 0:00:30]} c5 {[%emt 0:00:30]} 2. Nf3 {[%emt 0:00:00]} e6 {[%emt 0:00:00]} 3. d4 {[%emt 0:00:00]} cxd4 {[%emt 0:00:00]} 4. Nxd4 {[%emt 0:00:30]} Nc6 {[%emt 0:00:30]} 5. Nc3 {[%emt 0:00:00]} Qc7 {[%emt 0:00:00]} 6. g3 {[%emt 0:00:00]} a6 {[%emt 0:05:00]} 7. Bg2 {[%emt 0:00:30]} Nf6 {[%emt 0:00:30]} 8. O-O {[%emt 0:00:30]} Bc5 {[%emt 0:11:30]} 9. Nxc6 {[%emt 0:00:00]} dxc6 {[%emt 0:10:30]} 10. e5 {[%emt 0:03:00]} Qxe5 {[%emt 0:09:30]} 11. Bf4 {[%emt 0:00:30]} Qh5 {[%emt 0:04:30]} 12. Bf3 {[%emt 0:00:30]} Qg6 {[%emt 0:01:30]} 13. Bd6 {[%emt 0:01:30]} Bxd6 {[%emt 0:09:30]} 14. Qxd6 {[%emt 0:00:00]} Bd7 {[%emt 0:15:30]} 15. Rad1 {[%emt 0:10:00]} Rd8 {[%emt 0:12:26]} 16. Na4 {[%emt 0:10:30]} Qf5 {[%emt 0:02:08]} 17. Bg2 {[%emt 0:24:30]} Qa5 {[%emt 0:00:16]} 18. b3 {[%emt 0:00:30]} Bc8 {[%emt 0:03:15]} 19. Qa3 {[%emt 0:00:30]} Qc7 {[%emt 0:01:07]} 20. Qc5 {[%emt 0:13:30]} Qe7 {[%emt 0:03:52]} 21. Rxd8+ {[%emt 0:00:00]} Qxd8 {[%emt 0:00:14]} 22. Nb6 {[%emt 0:00:00]} Nd7 {[%emt 0:01:02]} 23. Nxd7 {[%emt 0:00:30]} Qxd7 {[%emt 0:00:26]} 24. c4 {[%emt 0:01:30]} Qe7 {[%emt 0:00:57]} 25. Qa5 {[%emt 0:00:30]} Qd8 {[%emt 0:01:14]} 26. Qc5 {[%emt 0:00:30]} Qe7 {[%emt 0:00:30]} 27. Qa5 {[%emt 0:00:30]} Qd8 {[%emt 0:01:45]} 28. Qc5 {[%emt 0:00:30]} Qe7 {[%emt 0:00:58]} 1/2-1/2

[Event "World Junior U20 Open 2018"]
[Site "Gebze"]
[Date "2018.09.12"]
[Round "8.54"]
[White "Yilmaz, Goktan"]
[Black "Urazayev, Arystanbek"]
[Result "1/2-1/2"]
[ECO "C11"]
[WhiteElo "2237"]
[BlackElo "2333"]
[Annotator "NA"]
[PlyCount "124"]
[EventDate "2018.09.05"]
[EventType "swiss"]
[EventCountry "TUR"]
[SourceTitle "playchess.com"]
[Source "ChessBase"]
[SourceQuality "1"]
[TimeControl "40/5400+30:1800+30"]

1. e4 {[%emt 0:00:30]} e6 {[%emt 0:02:30]} 2. d4 {[%emt 0:00:00]} d5 {[%emt 0:00:00]} 3. Nc3 {[%emt 0:00:00]} Nf6 {[%emt 0:03:00]} 4. e5 {[%emt 0:00:00]} Nfd7 {[%emt 0:00:30]} 5. f4 {[%emt 0:01:00]} c5 {[%emt 0:00:30]} 6. Nf3 {[%emt 0:00:30]} Nc6 {[%emt 0:00:00]} 7. Be3 {[%emt 0:00:00]} Be7 {[%emt 0:00:00]} 8. Qd2 {[%emt 0:00:00]} O-O {[%emt 0:03:30]} 9. O-O-O {[%emt 0:14:30] C11: French: Classical System: 4 e5 and 4 Bg5 dxe4} (9. dxc5 Qa5 10. a3 Bxc5 11. O-O-O Rd8 12. Bxc5 Nxc5 13. h4 Bd7 14. h5 h6 15. g4 Be8 16. Qe3 d4 17. Nxd4 Nxd4 18. Rxd4 {½-½ (26) Inarkiev,E (2689)-Volkov,S (2645) St Petersburg 2017}) 9... c4 {[%emt 0:00:30]} 10. f5 {[%emt 0:03:30]} b5 {[%emt 0:07:30]} 11. fxe6 {[%emt 0:20:30]} fxe6 {[%emt 0:00:30]} 12. Ne2 {[%emt 0:02:30]} b4 {[%emt 0:01:30]} 13. Qe1 {[%emt 0:04:30]} a5 {[%emt 0:06:30]} ({Predecessor:} 13... c3 14. b3 a5 15. Kb1 a4 16. Nc1 axb3 17. cxb3 {0-1 (48) Bogachkova,A (2086)-Gavrilov,A (2496) St Petersburg 2012}) 14. Nf4 {[%emt 0:07:30]} Nb6 {[%emt 0:01:30]} 15. h4 {[%emt 0:00:00]} b3 {[%emt 0:06:30]} 16. cxb3 {[%emt 0:04:00]} cxb3 {[%emt 0:00:30]} 17. a3 {[%emt 0:00:30]} Rb8 {[%emt 0:36:30]} 18. Bd3 {[%emt 0:06:30]} Bxa3 {[%emt 0:13:00]} 19. bxa3 {[%emt 0:03:30]} Qe7 {[%emt 0:00:51]} 20. Kd2 {[%emt 0:08:30]} Qxa3 {[%emt 0:00:21]} 21. Ke2 {[%emt 0:00:30]} Nb4 {[%emt 0:03:10]} 22. Ra1 {[%emt 0:01:30]} Na2 {[%emt 0:02:11]} 23. Ng5 {[%emt 0:03:15]} Rxf4 {[%emt 0:03:11]} 24. Bxf4 {[%emt 0:00:14]} h6 {[%emt 0:01:42]} 25. Nf3 {[%emt 0:00:38]} b2 {[%emt 0:00:43]} 26. Rxa2 {[%emt 0:01:49]} Qxa2 {[%emt 0:00:24]} 27. Nd2 {[%emt 0:02:32]} Na4 {[%emt 0:03:02]} 28. Nb1 {[%emt 0:00:14]} Rb3 {[%emt 0:00:35]} 29. Qd2 {[%emt 0:02:45]} Bd7 {[%emt 0:01:10]} 30. Bc2 {[%emt 0:02:28]} Rb4 {[%emt 0:01:21]} 31. Kf2 {[%emt 0:00:56]} Qc4 {[%emt 0:00:39]} 32. Be3 {[%emt 0:00:53]} Nb6 {[%emt 0:00:37]} 33. Qd3 {[%emt 0:03:03]} Qxd3 {[%emt 0:00:43]} 34. Bxd3 {[%emt 0:00:01]} Nc4 {[%emt 0:00:00]} 35. Bxc4 {[%emt 0:03:22]} Rxc4 {[%emt 0:00:43]} 36. Ke2 {[%emt 0:02:20]} Be8 {[%emt 0:00:45]} 37. h5 {[%emt 0:00:50]} Ba4 {[%emt 0:00:47]} 38. Bd2 {[%emt 0:01:27]} Rxd4 {[%emt 0:00:50]} 39. Bc3 {[%emt 0:01:21]} Rc4 {[%emt 0:00:14]} 40. Kd3 {[%emt 0:00:00]} Rg4 {[%emt 0:00:00]} 41. Bxb2 {[%emt 0:04:22]} Bb5+ {[%emt 0:08:01]} 42. Ke3 {[%emt 0:02:30]} Rxg2 {[%emt 0:03:30]} 43. Bc3 {[%emt 0:00:30]} a4 {[%emt 0:03:26]} 44. Kd4 {[%emt 0:01:30]} Be2 {[%emt 0:05:03]} 45. Kc5 {[%emt 0:02:30]} Kf7 {[%emt 0:04:10]} 46. Kd6 {[%emt 0:00:30]} Bg4 {[%emt 0:04:26]} 47. Rf1+ {[%emt 0:02:30]} Kg8 {[%emt 0:03:13]} 48. Rf4 {[%emt 0:00:30]} g6 {[%emt 0:01:38]} 49. Ke7 {[%emt 0:13:01]} gxh5 {[%emt 0:00:12]} 50. Rf8+ {[%emt 0:01:59]} Kg7 {[%emt 0:00:30]} 51. Rf7+ {[%emt 0:00:00]} Kg6 {[%emt 0:00:00]} 52. Bd2 {[%emt 0:00:05]} h4 {[%emt 0:02:02]} 53. Rf6+ {[%emt 0:01:20]} Kg7 {[%emt 0:01:04]} 54. Bxh6+ {[%emt 0:00:12]} Kh7 {[%emt 0:00:00]} 55. Bf8 {[%emt 0:03:00]} Bf5 {[%emt 0:00:13]} 56. Rh6+ {[%emt 0:02:52]} Kg8 {[%emt 0:00:04]} 57. Rxh4 {[%emt 0:00:00]} Bxb1 {[%emt 0:00:25]} 58. Rxa4 {[%emt 0:00:45]} Bf5 {[%emt 0:00:14]} 59. Rh4 {[%emt 0:00:34]} Ra2 {[%emt 0:00:47]} 60. Kf6 {[%emt 0:00:43]} Rg2 {[%emt 0:01:17]} 61. Ke7 {[%emt 0:00:43]} Rg6 {[%emt 0:00:45]} 62. Ke8 {[%emt 0:00:39]} Rg2 $11 {[%emt 0:00:39]} (62... Rg3 $15) 1/2-1/2

[Event "World Junior U20 Open 2018"]
[Site "Gebze"]
[Date "2018.09.12"]
[Round "8.55"]
[White "Samani, Yamac"]
[Black "Sevgi, Volkan"]
[Result "1-0"]
[ECO "B15"]
[WhiteElo "2226"]
[BlackElo "2323"]
[Annotator "NA"]
[PlyCount "85"]
[EventDate "2018.09.05"]
[EventType "swiss"]
[EventCountry "TUR"]
[SourceTitle "playchess.com"]
[Source "ChessBase"]
[SourceQuality "1"]
[TimeControl "40/5400+30:1800+30"]

1. e4 {[%emt 0:00:30]} g6 {[%emt 0:00:30]} 2. d4 {[%emt 0:00:30]} Bg7 {[%emt 0:00:30]} 3. Nc3 {[%emt 0:00:30]} c6 {[%emt 0:00:30]} 4. Nf3 {[%emt 0:00:30]} d5 {[%emt 0:00:00]} 5. h3 {[%emt 0:00:30]} Nh6 {[%emt 0:00:00]} 6. Bf4 {[%emt 0:00:30]} f6 {[%emt 0:00:30]} 7. exd5 {[%emt 0:02:30]} cxd5 {[%emt 0:00:30]} 8. Nb5 {[%emt 0:00:30]} Na6 {[%emt 0:14:30]} 9. c4 {[%emt 0:00:30]} g5 {[%emt 0:00:30]} 10. Bh2 {[%emt 0:04:30]} Qa5+ {[%emt 0:18:30]} 11. Nc3 {[%emt 0:04:30]} Be6 {[%emt 0:08:30]} 12. cxd5 {[%emt 0:10:30]} Bxd5 {[%emt 0:00:30]} 13. Bb5+ {[%emt 0:01:30]} Kf8 {[%emt 0:04:30]} 14. O-O {[%emt 0:01:30]} Rd8 {[%emt 0:00:30]} 15. Re1 {[%emt 0:02:30]} Bf7 {[%emt 0:11:30]} 16. Qe2 {[%emt 0:02:30]} Ng8 {[%emt 0:03:30]} 17. a3 {[%emt 0:05:30]} Nc7 {[%emt 0:03:30]} 18. b4 {[%emt 0:03:30]} Qb6 {[%emt 0:00:30]} 19. Bc4 {[%emt 0:00:30]} Nd5 {[%emt 0:07:30]} 20. Na4 {[%emt 0:18:30]} Qc6 {[%emt 0:01:30]} 21. b5 {[%emt 0:01:30]} Qe8 {[%emt 0:03:57]} 22. Nc5 {[%emt 0:01:30]} b6 {[%emt 0:00:34]} 23. Ne6+ {[%emt 0:01:30]} Bxe6 {[%emt 0:00:30]} 24. Qxe6 {[%emt 0:00:00]} Qd7 {[%emt 0:00:00]} 25. Qe4 {[%emt 0:03:00]} h5 {[%emt 0:04:12]} 26. Rac1 {[%emt 0:03:30]} Kf7 {[%emt 0:03:10]} 27. Bc7 {[%emt 0:04:30]} Nh6 {[%emt 0:05:32]} 28. Bxd8 {[%emt 0:00:30]} Rxd8 {[%emt 0:00:00]} 29. Bxd5+ {[%emt 0:00:30]} Qxd5 {[%emt 0:00:03]} 30. Qxe7+ {[%emt 0:00:30]} Kg6 {[%emt 0:00:43]} 31. Re6 {[%emt 0:15:45]} Nf5 {[%emt 0:00:29]} 32. Ne5+ {[%emt 0:00:47]} Kh7 {[%emt 0:01:58]} 33. Qf7 {[%emt 0:00:37]} Nh4 {[%emt 0:00:37]} 34. Qxh5+ {[%emt 0:01:04]} Kg8 {[%emt 0:00:02]} 35. Re8+ {[%emt 0:02:05]} Rxe8 {[%emt 0:00:30]} 36. Qxe8+ {[%emt 0:00:10]} Kh7 {[%emt 0:00:00]} 37. Qh5+ {[%emt 0:00:53]} Kg8 {[%emt 0:00:13]} 38. Rc8+ {[%emt 0:01:08]} Bf8 {[%emt 0:00:02]} 39. Nf3 {[%emt 0:00:43]} Qe6 {[%emt 0:00:52]} 40. Re8 {[%emt 0:00:00]} Qc4 {[%emt 0:00:00]} 41. Nxh4 {[%emt 0:05:18]} Qc1+ {[%emt 0:03:06]} 42. Kh2 {[%emt 0:00:30]} Qf4+ {[%emt 0:00:00]} 43. g3 {[%emt 0:00:00]} 1-0

[Event "World Junior U20 Open 2018"]
[Site "Gebze"]
[Date "2018.09.12"]
[Round "8.56"]
[White "Silva, David"]
[Black "Zlatin, Alexander"]
[Result "1-0"]
[ECO "C78"]
[WhiteElo "2223"]
[BlackElo "2312"]
[Annotator "NA"]
[PlyCount "135"]
[EventDate "2018.09.05"]
[EventType "swiss"]
[EventCountry "TUR"]
[SourceTitle "playchess.com"]
[Source "ChessBase"]
[SourceQuality "1"]
[TimeControl "40/5400+30:1800+30"]

1. e4 {[%emt 0:00:30]} e5 {[%emt 0:00:30]} 2. Nf3 {[%emt 0:00:30]} Nc6 {[%emt 0:00:00]} 3. Bb5 {[%emt 0:00:00]} a6 {[%emt 0:00:00]} 4. Ba4 {[%emt 0:00:00]} Nf6 {[%emt 0:00:30]} 5. O-O {[%emt 0:06:30]} b5 {[%emt 0:00:00]} 6. Bb3 {[%emt 0:00:30]} Bc5 {[%emt 0:00:00]} 7. a4 {[%emt 0:00:30]} Rb8 {[%emt 0:00:00]} 8. c3 {[%emt 0:00:00]} d6 {[%emt 0:00:00]} 9. d4 {[%emt 0:02:00]} Bb6 {[%emt 0:00:30]} 10. a5 {[%emt 0:00:30]} Ba7 {[%emt 0:00:00]} 11. Be3 {[%emt 0:00:30]} exd4 {[%emt 0:10:00]} 12. cxd4 {[%emt 0:03:30]} O-O {[%emt 0:08:30]} 13. h3 {[%emt 0:00:30]} Nxe4 {[%emt 0:09:30]} 14. Qc2 {[%emt 0:04:30]} Qe8 {[%emt 0:00:30]} 15. Nc3 {[%emt 0:00:30]} Bf5 {[%emt 0:09:30]} 16. Nd5 {[%emt 0:01:30]} Ne7 {[%emt 0:18:30]} 17. Nh4 {[%emt 0:00:30]} Nxd5 {[%emt 0:06:30]} 18. Bxd5 {[%emt 0:00:30]} g6 {[%emt 0:06:30]} 19. Nxf5 {[%emt 0:03:30]} gxf5 {[%emt 0:00:00]} 20. Qxc7 {[%emt 0:01:30]} Nf6 {[%emt 0:02:00]} 21. Bb3 {[%emt 0:04:30]} Qd7 {[%emt 0:00:30]} 22. Qc2 {[%emt 0:00:30]} d5 {[%emt 0:01:30]} 23. Rac1 {[%emt 0:00:30]} Rbc8 {[%emt 0:00:30]} 24. Qd3 {[%emt 0:00:30]} Bb8 {[%emt 0:00:30]} 25. Bh6 {[%emt 0:02:30]} Rxc1 {[%emt 0:01:30]} 26. Rxc1 {[%emt 0:00:30]} Re8 {[%emt 0:00:00]} 27. Qf3 {[%emt 0:01:30]} Qe6 {[%emt 0:03:00]} 28. g3 {[%emt 0:01:30]} Ne4 {[%emt 0:00:30]} 29. Bf4 {[%emt 0:00:30]} Ba7 {[%emt 0:03:30]} 30. Be3 {[%emt 0:05:30]} Bb8 {[%emt 0:00:00]} 31. Kg2 {[%emt 0:00:00]} Kh8 {[%emt 0:01:00]} 32. Bf4 {[%emt 0:00:00]} Ba7 {[%emt 0:01:20]} 33. Qd3 {[%emt 0:02:30]} Rg8 {[%emt 0:01:42]} 34. Re1 {[%emt 0:00:30]} Qc6 {[%emt 0:05:01]} 35. Re2 {[%emt 0:02:30]} h6 {[%emt 0:03:42]} 36. Be5+ {[%emt 0:00:30]} f6 {[%emt 0:01:46]} 37. Bf4 {[%emt 0:00:30]} Qd7 {[%emt 0:01:02]} 38. Qf3 {[%emt 0:03:30]} Qf7 {[%emt 0:04:17]} 39. Bxh6 {[%emt 0:00:30]} Bxd4 {[%emt 0:00:44]} 40. Qxf5 {[%emt 0:00:00]} Qg6 {[%emt 0:00:00]} 41. Qxg6 {[%emt 0:02:00]} Rxg6 {[%emt 0:02:26]} 42. Bf4 {[%emt 0:00:30]} Nc5 {[%emt 0:01:30]} 43. Re8+ {[%emt 0:02:30]} Rg8 {[%emt 0:00:30]} 44. Rxg8+ {[%emt 0:00:30]} Kxg8 {[%emt 0:00:30]} 45. Bxd5+ {[%emt 0:00:00]} Kg7 {[%emt 0:00:00]} 46. b3 {[%emt 0:01:00]} Bc3 {[%emt 0:01:00]} 47. Be3 {[%emt 0:00:30]} Nd3 {[%emt 0:00:00]} 48. Bb6 {[%emt 0:00:30]} f5 {[%emt 0:01:00]} 49. f4 {[%emt 0:00:00]} Kf6 {[%emt 0:01:30]} 50. Bb7 {[%emt 0:00:00]} Nc1 {[%emt 0:01:30]} 51. Bxa6 {[%emt 0:02:30]} Nxb3 {[%emt 0:00:30]} 52. Bxb5 {[%emt 0:00:30]} Nxa5 {[%emt 0:00:00]} 53. Bxa5 {[%emt 0:00:30]} Bxa5 {[%emt 0:00:00]} 54. Bd3 {[%emt 0:00:00]} Bc3 {[%emt 0:00:30]} 55. g4 {[%emt 0:00:00]} fxg4 {[%emt 0:00:00]} 56. hxg4 {[%emt 0:00:00]} Kg7 {[%emt 0:01:00]} 57. g5 {[%emt 0:00:00]} Bd2 {[%emt 0:00:00]} 58. Kf3 {[%emt 0:00:30]} Bc1 {[%emt 0:00:00]} 59. Kg4 {[%emt 0:00:00]} Bd2 {[%emt 0:00:00]} 60. f5 {[%emt 0:00:00]} Bc3 {[%emt 0:00:00]} 61. Kf3 {[%emt 0:00:00]} Kf7 {[%emt 0:00:00]} 62. Bc4+ {[%emt 0:01:00]} Ke7 {[%emt 0:01:00]} 63. Kg4 {[%emt 0:00:30]} Kd6 {[%emt 0:01:30]} 64. Kh5 {[%emt 0:00:30]} Ke5 {[%emt 0:00:30]} 65. Bd3 {[%emt 0:00:30]} Kf4 {[%emt 0:00:30]} 66. Kh6 {[%emt 0:00:30]} Kg4 {[%emt 0:00:30]} 67. g6 {[%emt 0:00:30]} Bd2+ {[%emt 0:00:30]} 68. Kh7 {[%emt 0:00:30]} 1-0

[Event "World Junior U20 Open 2018"]
[Site "Gebze"]
[Date "2018.09.12"]
[Round "8.59"]
[White "Cadilhac, Igor Tokuichi Kikuc"]
[Black "Ozgur, Tibet Kagan"]
[Result "1-0"]
[ECO "B53"]
[WhiteElo "2286"]
[BlackElo "2056"]
[Annotator "NA"]
[PlyCount "71"]
[EventDate "2018.09.05"]
[EventType "swiss"]
[EventCountry "TUR"]
[SourceTitle "playchess.com"]
[Source "ChessBase"]
[SourceQuality "1"]
[TimeControl "40/5400+30:1800+30"]

1. e4 {[%emt 0:00:30]} c5 {[%emt 0:00:30]} 2. Nf3 {[%emt 0:00:30]} d6 {[%emt 0:00:00]} 3. d4 {[%emt 0:00:00]} cxd4 {[%emt 0:00:00]} 4. Qxd4 {[%emt 0:00:00]} Nc6 {[%emt 0:00:00]} 5. Bb5 {[%emt 0:00:30]} Bd7 {[%emt 0:00:00]} 6. Qd3 {[%emt 0:00:00]} Nb4 {[%emt 0:07:30]} 7. Bxd7+ {[%emt 0:02:00]} Qxd7 {[%emt 0:00:30]} 8. Qe2 {[%emt 0:05:30]} Nf6 {[%emt 0:05:30]} 9. O-O {[%emt 0:03:30]} e6 {[%emt 0:03:30]} 10. Rd1 {[%emt 0:02:30]} Qc6 {[%emt 0:14:30]} 11. Nc3 {[%emt 0:06:30]} Be7 {[%emt 0:03:30]} 12. a3 {[%emt 0:07:30]} Na6 {[%emt 0:01:30]} 13. Nd4 {[%emt 0:05:30]} Qc8 {[%emt 0:10:30]} 14. Ndb5 {[%emt 0:01:30]} Qc6 {[%emt 0:02:30]} 15. Bf4 {[%emt 0:04:30]} e5 {[%emt 0:13:30]} 16. Bg5 {[%emt 0:00:30]} Nc7 {[%emt 0:09:30]} 17. Nxc7+ {[%emt 0:03:30]} Qxc7 {[%emt 0:00:00]} 18. Bxf6 {[%emt 0:11:30]} gxf6 {[%emt 0:02:00]} 19. Nd5 {[%emt 0:00:30]} Qd8 {[%emt 0:01:30]} 20. Ne3 {[%emt 0:14:30]} Rc8 {[%emt 0:03:30]} 21. Rd3 {[%emt 0:01:30]} Bf8 {[%emt 0:01:19]} 22. Rad1 {[%emt 0:00:30]} Rc6 {[%emt 0:01:10]} 23. Qh5 {[%emt 0:03:30]} h6 {[%emt 0:03:22]} 24. c3 {[%emt 0:06:16]} Rg8 {[%emt 0:01:01]} 25. Nd5 {[%emt 0:03:34]} Rg6 {[%emt 0:01:21]} 26. Qf5 {[%emt 0:03:39]} Bg7 {[%emt 0:04:08]} 27. Nb4 {[%emt 0:03:44]} Rb6 {[%emt 0:01:04]} 28. c4 {[%emt 0:00:08]} Rg5 {[%emt 0:02:40]} 29. Qh3 {[%emt 0:00:02]} f5 {[%emt 0:06:03]} 30. c5 {[%emt 0:00:53]} fxe4 {[%emt 0:00:21]} 31. Rxd6 {[%emt 0:01:47]} Rxd6 {[%emt 0:00:45]} 32. Rxd6 {[%emt 0:00:02]} Qb8 {[%emt 0:00:43]} 33. Qd7+ {[%emt 0:01:39]} Kf8 {[%emt 0:00:01]} 34. c6 {[%emt 0:00:16]} bxc6 {[%emt 0:02:07]} 35. Nxc6 {[%emt 0:00:11]} Qe8 {[%emt 0:00:49]} 36. Qxe8+ {[%emt 0:00:39]} 1-0